fUSD/lending_fUSD_20250217
["ID","MTS","AMOUNT","RATE_DAILY","PERIOD"]
[353388515,1739808664633,-587.05,0.00013945,2]
[353388516,1739808664643,-500.0,0.00013945,2]
[353388517,1739808664652,-500.0,0.00013945,2]
[353388518,1739808664662,-500.0,0.00013945,2]
[353388519,1739808664672,-500.0,0.00013945,2]
[353388520,1739808664682,-500.0,0.00013945,2]
[353388521,1739808664692,-500.0,0.00013945,2]
[353388522,1739808664702,-525.62,0.00013945,2]
[353388523,1739808664712,-500.0,0.00013945,2]
[353388524,1739808664721,-500.0,0.00013945,2]
[353388525,1739808664731,-500.0,0.00013945,2]
[353388526,1739808664741,-500.0,0.00013945,2]
[353388527,1739808664750,-500.0,0.00013945,2]
[353388528,1739808664761,-500.0,0.00013945,2]
[353388529,1739808664770,-500.0,0.00013945,2]
[353388530,1739808664780,-500.0,0.00013945,2]
[353388531,1739808664790,-500.0,0.00013945,2]
[353388532,1739808664800,-500.0,0.00013945,2]
[353388533,1739808664813,-500.0,0.00013945,2]
[353388534,1739808664822,-500.0,0.00013945,2]
[353388535,1739808664831,-500.0,0.00013945,2]
[353388536,1739808664841,-500.0,0.00013945,2]
[353388537,1739808664850,-531.18,0.00013945,2]
[353388538,1739808664860,-500.0,0.00013945,2]
[353388539,1739808664869,-500.0,0.00013945,2]
[353388540,1739808664879,-500.0,0.00013945,2]
[353388541,1739808664888,-531.89,0.00013945,2]
[353388542,1739808664898,-500.0,0.00013945,2]
[353388543,1739808664907,-500.0,0.00013945,2]
[353388544,1739808664916,-500.0,0.00013945,2]
[353388545,1739808664926,-426.609506,0.00013945,2]
[353388546,1739808664935,-500.0,0.00013945,2]
[353388547,1739808664945,-500.0,0.00013945,2]
[353388548,1739808664955,-601.00476578,0.00013945,2]
[353388549,1739808664965,-541.83,0.00013945,2]
[353388550,1739808664974,-500.0,0.00013945,2]
[353388551,1739808664982,-500.0,0.00013945,2]
[353388552,1739808664991,-500.0,0.00013945,2]
[353388553,1739808665001,-500.0,0.00013945,2]
[353388554,1739808665012,-500.0,0.00013945,2]
[353388555,1739808665021,-500.0,0.00013945,2]
[353388556,1739808665031,-500.0,0.00013945,2]
[353388557,1739808665041,-500.0,0.00013945,2]
[353388558,1739808665050,-500.0,0.00013945,2]
[353388559,1739808665064,-500.0,0.00013945,2]
[353388560,1739808665074,-500.0,0.00013945,2]
[353388561,1739808665083,-683.15,0.00013945,2]
[353388562,1739808665093,-355.76711401,0.00013945,2]
[353388563,1739808665102,-500.0,0.00013945,2]
[353388564,1739808665112,-500.0,0.00013945,2]
[353388565,1739808665122,-500.0,0.00013945,2]
[353388566,1739808665131,-500.0,0.00013945,2]
[353388567,1739808665140,-500.0,0.00013945,2]
[353388568,1739808665150,-500.0,0.00013945,2]
[353388569,1739808665160,-500.0,0.00013945,2]
[353388570,1739808665170,-500.0,0.00013945,2]
[353388571,1739808665180,-1042.38,0.00013945,2]
[353388572,1739808665190,-528.06,0.00013945,2]
[353388573,1739808665200,-500.0,0.00013945,2]
[353388574,1739808665209,-385.740435,0.00013945,2]
[353388575,1739808665219,-500.0,0.00013945,2]
[353388576,1739808665228,-524.48,0.00013945,2]
[353388577,1739808665237,-500.0,0.00013945,2]
[353388578,1739808665247,-500.0,0.00013945,2]
[353388579,1739808665257,-614.14,0.00013945,2]
[353388580,1739808665267,-500.0,0.00013945,2]
[353388581,1739808665276,-500.0,0.00013945,2]
[353388582,1739808665286,-211.33063493,0.00013945,2]
[353388583,1739808665716,-288.66936507,0.00013945,2]
[353388584,1739808665727,-256.93372137,0.00013945,2]
[353388585,1739808665739,-243.06627863,0.00013945,2]
[353388586,1739808665749,-370.04513447,0.00013945,2]
[353388587,1739808666529,-500.0,0.00013698,2]
[353388588,1739808666538,-191.315496,0.00013698,2]
[353388589,1739808666550,-308.684504,0.00013698,2]
[353388590,1739808666562,-352.69050082,0.00013698,2]
[353388591,1739808666590,-277.20949918,0.00013698,2]
[353388592,1739808666599,-500.0,0.00013698,2]
[353388593,1739808666609,-500.0,0.0001378,2]
[353388594,1739808666619,-500.0,0.00013863,2]
[353388595,1739808666629,-129.95486553,0.00013945,2]
[353388596,1739808666639,-500.0,0.00013945,2]
[353388597,1739808666649,-518.77,0.00013945,2]
[353388598,1739808666659,-500.0,0.00013945,2]
[353388599,1739808666668,-500.0,0.00013945,2]
[353388600,1739808666677,-500.0,0.00013945,2]
[353388601,1739808666687,-500.0,0.00013945,2]
[353388602,1739808666697,-500.0,0.00013945,2]
[353388603,1739808666707,-500.0,0.00013945,2]
[353388604,1739808666716,-500.0,0.00013945,2]
[353388605,1739808666725,-500.0,0.00013945,2]
[353388606,1739808666735,-500.0,0.00013945,2]
[353388607,1739808666744,-500.0,0.00013945,2]
[353388608,1739808666753,-500.0,0.00013945,2]
[353388609,1739808666763,-500.0,0.00013945,2]
[353388610,1739808666772,-500.0,0.00013945,2]
[353388611,1739808666781,-500.0,0.00013945,2]
[353388612,1739808666790,-500.0,0.00013945,2]
[353388613,1739808666800,-500.0,0.00013945,2]
[353388614,1739808666812,-500.0,0.00013945,2]
[353388615,1739808666822,-559.73,0.00013945,2]
[353388616,1739808666831,-500.0,0.00013945,2]
[353388617,1739808666840,-500.0,0.00013945,2]
[353388618,1739808666849,-500.0,0.00013945,2]
[353388619,1739808666859,-500.0,0.00013945,2]
[353388620,1739808666868,-500.0,0.00013945,2]
[353388621,1739808666878,-500.0,0.00013945,2]
[353388622,1739808666887,-500.0,0.00013945,2]
[353388623,1739808666897,-316.6,0.00013945,2]
[353388624,1739808666906,-500.0,0.00013945,2]
[353388625,1739808666917,-500.0,0.00013945,2]
[353388626,1739808666926,-569.9,0.00013945,2]
[353388627,1739808666936,-500.0,0.00013945,2]
[353388628,1739808666945,-500.0,0.00013945,2]
[353388629,1739808666954,-538.35,0.00013945,2]
[353388630,1739808666963,-500.0,0.00013945,2]
[353388631,1739808666972,-500.0,0.00013945,2]
[353388632,1739808666982,-523.5,0.00013945,2]
[353388633,1739808666992,-500.0,0.00013945,2]
[353388634,1739808667001,-527.8,0.00013945,2]
[353388635,1739808667011,-500.0,0.00013945,2]
[353388636,1739808667021,-500.0,0.00013945,2]
[353388637,1739808667032,-500.0,0.00013945,2]
[353388638,1739808667041,-500.0,0.00013945,2]
[353388639,1739808667051,-225.34526872,0.00013945,2]
[353388640,1739808667062,-500.0,0.00013945,2]
[353388641,1739808667072,-500.0,0.00013945,2]
[353388642,1739808667081,-500.0,0.00013945,2]
[353388643,1739808667090,-500.0,0.00013945,2]
[353388644,1739808667100,-555.61,0.00013945,2]
[353388645,1739808667110,-267.83040658,0.00013945,2]
[353388646,1739808667126,-552.48959342,0.00013945,2]
[353388647,1739808667136,-500.0,0.00013945,2]
[353388648,1739808667146,-500.0,0.00013945,2]
[353388649,1739808667155,-500.0,0.00013945,2]
[353388650,1739808667164,-500.0,0.00013945,2]
[353388651,1739808667174,-500.0,0.00013945,2]
[353388652,1739808667185,-500.0,0.00013945,2]
[353388653,1739808667194,-612.03,0.00013945,2]
[353388654,1739808667206,-500.0,0.00013945,2]
[353388655,1739808667215,-500.0,0.00013945,2]
[353388656,1739808667224,-590.37,0.00013945,2]
[353388657,1739808667234,-500.0,0.00013945,2]
[353388658,1739808667243,-500.0,0.00013945,2]
[353388659,1739808667252,-439.61,0.00013945,2]
[353388660,1739808667262,-376.56,0.00013945,2]
[353388661,1739808667271,-500.0,0.00013945,2]
[353388662,1739808667280,-392.08385189,0.00013945,2]
[353388663,1739808667290,-500.0,0.00013945,2]
[353388664,1739808667302,-500.0,0.00013945,2]
[353388665,1739808667318,-496.16340578,0.00013945,2]
[353388666,1739808667328,-640.93,0.00013945,2]
[353388667,1739808667339,-500.0,0.00013945,2]
[353388668,1739808667352,-633.0,0.00013945,2]
[353388669,1739808667364,-500.0,0.00013945,2]
[353388670,1739808667374,-524.42,0.00013945,2]
[353388671,1739808667385,-603.72,0.00013945,2]
[353388672,1739808667397,-1073.87,0.00013945,2]
[353388673,1739808667407,-500.0,0.00013945,2]
[353388674,1739808667417,-500.0,0.00013945,2]
[353388675,1739808667427,-500.0,0.00013945,2]
[353388676,1739808667437,-500.0,0.00013945,2]
[353388677,1739808667449,-521.99,0.00013945,2]
[353388678,1739808667460,-500.0,0.00013945,2]
[353388679,1739808667471,-500.0,0.00013945,2]
[353388680,1739808667482,-500.0,0.00013945,2]
[353388681,1739808667496,-500.0,0.00013945,2]
[353388682,1739808667506,-578.99,0.00013945,2]
[353388683,1739808667516,-949.81,0.00013945,2]
[353388684,1739808667527,-500.0,0.00013945,2]
[353388685,1739808667537,-500.0,0.00013945,2]
[353388686,1739808667547,-500.0,0.00013945,2]
[353388687,1739808667561,-732.59,0.00013945,2]
[353388688,1739808667571,-500.0,0.00013945,2]
[353388689,1739808667580,-500.0,0.00013945,2]
[353388690,1739808667590,-373.22,0.00013945,2]
[353388691,1739808667599,-500.0,0.00013945,2]
[353388692,1739808667610,-500.0,0.00013945,2]
[353388693,1739808667627,-674.25,0.00013945,2]
[353388694,1739808667637,-500.0,0.00013945,2]
[353388695,1739808667647,-500.0,0.00013945,2]
[353388696,1739808667657,-540.38,0.00013945,2]
[353388697,1739808667667,-526.58,0.00013945,2]
[353388698,1739808667677,-500.0,0.00013945,2]
[353388699,1739808667687,-1547.95,0.00013945,2]
[353388700,1739808667696,-968.22,0.00013945,2]
[353388701,1739808667707,-500.0,0.00013945,2]
[353388702,1739808667716,-721.79,0.00013945,2]
[353388703,1739808667727,-500.0,0.00013945,2]
[353388704,1739808667737,-500.0,0.00013945,2]
[353388705,1739808667748,-500.0,0.00013945,2]
[353388706,1739808667759,-500.0,0.00013945,2]
[353388707,1739808667769,-500.0,0.00013945,2]
[353388708,1739808667779,-1218.87,0.00013945,2]
[353388709,1739808667789,-937.07,0.00013945,2]
[353388710,1739808667799,-500.0,0.00013945,2]
[353388711,1739808667812,-500.0,0.00013945,2]
[353388712,1739808667822,-500.0,0.00013945,2]
[353388713,1739808667831,-500.0,0.00013945,2]
[353388714,1739808667840,-840.26,0.00013945,2]
[353388715,1739808667850,-500.0,0.00013945,2]
[353388716,1739808667860,-1047.93,0.00013945,2]
[353388717,1739808667870,-650.73,0.00013945,2]
[353388718,1739808667879,-500.0,0.00013945,2]
[353388719,1739808667889,-847.87,0.00013945,2]
[353388720,1739808667899,-500.0,0.00013945,2]
[353388721,1739808667909,-500.0,0.00013945,2]
[353388722,1739808667918,-500.0,0.00013945,2]
[353388723,1739808667928,-516.01,0.00013945,2]
[353388724,1739808667938,-510.83,0.00013945,2]
[353388725,1739808667948,-750.18,0.00013945,2]
[353388726,1739808667958,-553.39,0.00013945,2]
[353388727,1739808667967,-1008.95,0.00013945,2]
[353388728,1739808667976,-816.46,0.00013945,2]
[353388729,1739808667986,-500.0,0.00013945,2]
[353388730,1739808667995,-900.2,0.00013945,2]
[353388731,1739808668005,-500.0,0.00013945,2]
[353388732,1739808668015,-983.81,0.00013945,2]
[353388733,1739808668024,-632.76,0.00013945,2]
[353388734,1739808668034,-500.0,0.00013945,2]
[353388735,1739808668043,-500.0,0.00013945,2]
[353388736,1739808668053,-651.22,0.00013945,2]
[353388737,1739808668063,-805.21,0.00013945,2]
[353388738,1739808668073,-500.0,0.00013945,2]
[353388739,1739808668083,-500.0,0.00013945,2]
[353388740,1739808668093,-660.48,0.00013945,2]
[353388741,1739808668103,-1280.9,0.00013945,2]
[353388742,1739808668112,-2417.31,0.00013945,2]
[353388743,1739808668122,-1133.64,0.00013945,2]
[353388744,1739808668131,-500.0,0.00013945,2]
[353388745,1739808668141,-2006.91,0.00013945,2]
[353388746,1739808668151,-832.36,0.00013945,2]
[353388747,1739808668162,-500.0,0.00013945,2]
[353388748,1739808668179,-500.0,0.00013945,2]
[353388749,1739808668190,-1188.46,0.00013945,2]
[353388750,1739808668202,-500.0,0.00013945,2]
[353388751,1739808668217,-500.0,0.00013945,2]
[353388752,1739808668235,-1022.75,0.00013945,2]
[353388753,1739808668245,-521.56,0.00013945,2]
[353388754,1739808668256,-840.29,0.00013945,2]
[353388755,1739808668266,-500.0,0.00013945,2]
[353388756,1739808668276,-500.0,0.00013945,2]
[353388757,1739808668285,-500.0,0.00013945,2]
[353388758,1739808668297,-500.0,0.00013945,2]
[353388759,1739808668310,-500.0,0.00013945,2]
[353388760,1739808668320,-1694.49,0.00013945,2]
[353388761,1739808668330,-500.0,0.00013945,2]
[353388762,1739808668341,-500.0,0.00013945,2]
[353388763,1739808668351,-500.0,0.00013945,2]
[353388764,1739808668360,-500.0,0.00013945,2]
[353388765,1739808668370,-544.77,0.00013945,2]
[353388766,1739808668380,-1015.96,0.00013945,2]
[353388767,1739808668391,-500.0,0.00013945,2]
[353388768,1739808668401,-1086.82,0.00013945,2]
[353388769,1739808668410,-2321.33,0.00013945,2]
[353388770,1739808668419,-500.0,0.00013945,2]
[353388771,1739808668429,-1100.32,0.00013945,2]
[353388772,1739808668439,-374.05800361,0.00013945,2]
[353388773,1739808668449,-500.0,0.00013945,2]
[353388774,1739808668458,-711.15,0.00013945,2]
[353388775,1739808668469,-511.92,0.00013945,2]
[353388776,1739808668479,-500.0,0.00013945,2]
[353388777,1739808668489,-753.28,0.00013945,2]
[353388778,1739808668499,-2485.22,0.00013945,2]
[353388779,1739808668509,-976.24,0.00013945,2]
[353388780,1739808668519,-504.39,0.00013945,2]
[353388781,1739808668529,-500.0,0.00013945,2]
[353388782,1739808668538,-500.0,0.00013945,2]
[353388783,1739808668549,-500.0,0.00013945,2]
[353388784,1739808668559,-500.0,0.00013945,2]
[353388785,1739808668569,-500.0,0.00013945,2]
[353388786,1739808668579,-876.02,0.00013945,2]
[353388787,1739808668590,-207.87,0.00013945,2]
[353388788,1739808668600,-754.85,0.00013945,2]
[353388789,1739808668610,-500.0,0.00013945,2]
[353388790,1739808668620,-970.02,0.00013945,2]
[353388791,1739808668630,-838.42,0.00013945,2]
[353388792,1739808668640,-500.0,0.00013945,2]
[353388793,1739808668650,-500.0,0.00013945,2]
[353388794,1739808668660,-500.0,0.00013945,2]
[353388795,1739808668670,-500.0,0.00013945,2]
[353388796,1739808668680,-500.0,0.00013945,2]
[353388797,1739808668690,-500.0,0.00013945,2]
[353388798,1739808668700,-500.0,0.00013945,2]
[353388799,1739808668710,-1415.29,0.00013945,2]
[353388800,1739808668720,-1411.31,0.00013945,2]
[353388801,1739808668730,-500.0,0.00013945,2]
[353388802,1739808668741,-609.98,0.00013945,2]
[353388803,1739808668751,-977.08,0.00013945,2]
[353388804,1739808668761,-557.15,0.00013945,2]
[353388805,1739808668771,-639.83,0.00013945,2]
[353388806,1739808668781,-729.94,0.00013945,2]
[353388807,1739808668790,-630.44,0.00013945,2]
[353388808,1739808668800,-1590.87,0.00013945,2]
[353388809,1739808668810,-265.89,0.00013945,2]
[353388810,1739808668820,-983.09,0.00013945,2]
[353388811,1739808668830,-607.31755009,0.00013945,2]
[353388812,1739808668840,-1355.54,0.00013945,2]
[353388813,1739808668850,-500.0,0.00013945,2]
[353388814,1739808668860,-500.0,0.00013945,2]
[353388815,1739808668871,-500.0,0.00013945,2]
[353388816,1739808668881,-617.66,0.00013945,2]
[353388817,1739808668891,-890.71,0.00013945,2]
[353388818,1739808668902,-664.2,0.00013945,2]
[353388819,1739808668912,-523.0,0.00013945,2]
[353388820,1739808668922,-527.12,0.00013945,2]
[353388821,1739808668933,-702.93,0.00013945,2]
[353388822,1739808668943,-500.0,0.00013945,2]
[353388823,1739808668953,-500.0,0.00013945,2]
[353388824,1739808668963,-1175.53,0.00013945,2]
[353388825,1739808668973,-500.0,0.00013945,2]
[353388826,1739808668984,-1296.19,0.00013945,2]
[353388827,1739808668994,-549.43,0.00013945,2]
[353388828,1739808669005,-1758.88,0.00013945,2]
[353388829,1739808669016,-500.0,0.00013945,2]
[353388830,1739808669027,-500.0,0.00013945,2]
[353388831,1739808669038,-1468.21,0.00013945,2]
[353388832,1739808669049,-931.33,0.00013945,2]
[353388833,1739808669061,-676.42,0.00013945,2]
[353388834,1739808669087,-500.0,0.00013945,2]
[353388835,1739808669098,-500.0,0.00013945,2]
[353388836,1739808669110,-1105.7508367,0.00014,4]
[353388837,1739808669121,-650.0,0.00014,2]
[353388838,1739808669136,-575.59359384,0.00014009,2]
[353388839,1739808669147,-1177.64376099,0.00014025,5]
[353388840,1739808669162,-500.0,0.00014025,2]
[353388841,1739808669174,-680.64,0.00014025,2]
[353388842,1739808669185,-500.0,0.00014025,2]
[353388843,1739808669198,-696.72,0.00014025,2]
[353388844,1739808669210,-1360.71,0.00014025,2]
[353388845,1739808669221,-500.0,0.00014025,2]
[353388846,1739808669233,-637.48,0.00014025,2]
[353388847,1739808669243,-794.87,0.00014025,2]
[353388848,1739808669254,-1049.34,0.00014025,2]
[353388849,1739808669265,-2710.8,0.00014025,2]
[353388850,1739808669276,-669.02,0.00014025,2]
[353388851,1739808669287,-769.08,0.00014025,2]
[353388852,1739808669302,-572.98,0.00014025,2]
[353388853,1739808669312,-990.85,0.00014025,2]
[353388854,1739808669323,-500.0,0.00014025,2]
[353388855,1739808669333,-611.41,0.00014025,2]
[353388856,1739808669345,-1177.85,0.00014026,2]
[353388857,1739808669355,-1177.85,0.00014026,2]
[353388858,1739808669365,-796.63,0.00014026,2]
[353388859,1739808669375,-960.02,0.00014026,2]
[353388860,1739808669386,-1000.0,0.00014026,2]
[353388861,1739808669397,-888.72,0.00014026,2]
[353388862,1739808669407,-500.0,0.00014026,2]
[353388863,1739808669417,-707.26,0.00014026,2]
[353388864,1739808669427,-1044.02,0.00014026,2]
[353388865,1739808669437,-500.0,0.00014026,2]
[353388866,1739808669447,-1000.0,0.00014026,2]
[353388867,1739808669457,-500.0,0.00014027,2]
[353388868,1739808669467,-500.0,0.00014027,2]
[353388869,1739808669476,-500.0,0.00014027,2]
[353388870,1739808669486,-500.0,0.00014027,2]
[353388871,1739808669497,-736.96,0.00014027,2]
[353388872,1739808669507,-500.0,0.00014027,2]
[353388873,1739808669517,-500.0,0.00014027,2]
[353388874,1739808669526,-500.0,0.00014027,2]
[353388875,1739808669536,-500.0,0.00014027,2]
[353388876,1739808669546,-500.0,0.00014027,2]
[353388877,1739808669557,-500.0,0.00014027,2]
[353388878,1739808669567,-500.0,0.00014027,2]
[353388879,1739808669576,-500.0,0.00014027,2]
[353388880,1739808669586,-500.0,0.00014027,2]
[353388881,1739808669595,-500.0,0.00014027,2]
[353388882,1739808669605,-256.04959937,0.00014027,2]
[353388883,1739808669615,-500.0,0.00014027,2]
[353388884,1739808669626,-500.0,0.00014027,2]
[353388885,1739808669637,-500.0,0.00014027,2]
[353388886,1739808669649,-500.0,0.00014027,2]
[353388887,1739808669659,-500.0,0.00014027,2]
[353388888,1739808669669,-500.0,0.00014027,2]
[353388889,1739808669679,-500.0,0.00014027,2]
[353388890,1739808669689,-500.0,0.00014027,2]
[353388891,1739808669699,-500.0,0.00014027,2]
[353388892,1739808669709,-500.0,0.00014027,2]
[353388893,1739808669719,-587.05,0.00014027,2]
[353388894,1739808669728,-500.0,0.00014027,2]
[353388895,1739808669738,-500.0,0.00014027,2]
[353388896,1739808669748,-500.0,0.00014027,2]
[353388897,1739808669758,-500.0,0.00014027,2]
[353388898,1739808669770,-500.0,0.00014027,2]
[353388899,1739808669780,-525.62,0.00014027,2]
[353388900,1739808669790,-500.0,0.00014027,2]
[353388901,1739808669801,-500.0,0.00014027,2]
[353388902,1739808669810,-500.0,0.00014027,2]
[353388903,1739808669821,-500.0,0.00014027,2]
[353388904,1739808669831,-500.0,0.00014027,2]
[353388905,1739808669840,-500.0,0.00014027,2]
[353388906,1739808669850,-500.0,0.00014027,2]
[353388907,1739808669859,-500.0,0.00014027,2]
[353388908,1739808669869,-500.0,0.00014027,2]
[353388909,1739808669879,-422.61654872,0.00014027,2]
[353388910,1739808669889,-500.0,0.00014027,2]
[353388911,1739808669898,-500.0,0.00014027,2]
[353388912,1739808669908,-500.0,0.00014027,2]
[353388913,1739808669918,-500.0,0.00014027,2]
[353388914,1739808670125,-531.18,0.00014027,2]
[353388915,1739808670142,-500.0,0.00014027,2]
[353388916,1739808670153,-500.0,0.00014027,2]
[353388917,1739808670162,-531.89,0.00014027,2]
[353388918,1739808670172,-500.0,0.00014027,2]
[353388919,1739808670181,-356.11,0.00014027,2]
[353388920,1739808670191,-500.0,0.00014027,2]
[353388921,1739808670200,-500.0,0.00014027,2]
[353388922,1739808670209,-426.609506,0.00014027,2]
[353388923,1739808670220,-500.0,0.00014027,2]
[353388924,1739808670230,-500.0,0.00014027,2]
[353388925,1739808670239,-541.83,0.00014027,2]
[353388926,1739808670248,-500.0,0.00014027,2]
[353388927,1739808670258,-500.0,0.00014027,2]
[353388928,1739808670267,-500.0,0.00014027,2]
[353388929,1739808670278,-500.0,0.00014027,2]
[353388930,1739808670287,-500.0,0.00014027,2]
[353388931,1739808670298,-500.0,0.00014027,2]
[353388932,1739808670307,-500.0,0.00014027,2]
[353388933,1739808670317,-500.0,0.00014027,2]
[353388934,1739808670330,-500.0,0.00014027,2]
[353388935,1739808670340,-500.0,0.00014027,2]
[353388936,1739808670349,-500.0,0.00014027,2]
[353388937,1739808670358,-683.15,0.00014027,2]
[353388938,1739808670369,-500.0,0.00014027,2]
[353388939,1739808670378,-500.0,0.00014027,2]
[353388940,1739808670388,-500.0,0.00014027,2]
[353388941,1739808670398,-500.0,0.00014027,2]
[353388942,1739808670409,-500.0,0.00014027,2]
[353388943,1739808670419,-500.0,0.00014027,2]
[353388944,1739808670429,-500.0,0.00014027,2]
[353388945,1739808670439,-1042.38,0.00014027,2]
[353388946,1739808670449,-528.06,0.00014027,2]
[353388947,1739808670459,-500.0,0.00014027,2]
[353388948,1739808670468,-385.740435,0.00014027,2]
[353388949,1739808670479,-500.0,0.00014027,2]
[353388950,1739808670489,-524.48,0.00014027,2]
[353388951,1739808670498,-500.0,0.00014027,2]
[353388952,1739808670507,-500.0,0.00014027,2]
[353388953,1739808670516,-614.14,0.00014027,2]
[353388954,1739808670526,-500.0,0.00014027,2]
[353388955,1739808670536,-500.0,0.00014027,2]
[353388956,1739808670545,-500.0,0.00014027,2]
[353388957,1739808670554,-500.0,0.00014027,2]
[353388958,1739808670563,-500.0,0.00014027,2]
[353388959,1739808670573,-500.0,0.00014027,2]
[353388960,1739808670582,-500.0,0.00014027,2]
[353388961,1739808670592,-518.77,0.00014027,2]
[353388962,1739808670601,-500.0,0.00014027,2]
[353388963,1739808670611,-500.0,0.00014027,2]
[353388964,1739808670621,-500.0,0.00014027,2]
[353388965,1739808670631,-500.0,0.00014027,2]
[353388966,1739808670642,-500.0,0.00014027,2]
[353388967,1739808670652,-500.0,0.00014027,2]
[353388968,1739808670661,-500.0,0.00014027,2]
[353388969,1739808670671,-605.46367636,0.00014027,2]
[353388970,1739808670680,-500.0,0.00014027,2]
[353388971,1739808670690,-500.0,0.00014027,2]
[353388972,1739808670699,-500.0,0.00014027,2]
[353388973,1739808670708,-559.73,0.00014027,2]
[353388974,1739808670717,-500.0,0.00014027,2]
[353388975,1739808670726,-500.0,0.00014027,2]
[353388976,1739808670735,-500.0,0.00014027,2]
[353388977,1739808670745,-500.0,0.00014027,2]
[353388978,1739808670754,-500.0,0.00014027,2]
[353388979,1739808670764,-500.0,0.00014027,2]
[353388980,1739808670773,-569.9,0.00014027,2]
[353388981,1739808670783,-500.0,0.00014027,2]
[353388982,1739808670794,-538.35,0.00014027,2]
[353388983,1739808670803,-500.0,0.00014027,2]
[353388984,1739808670813,-500.0,0.00014027,2]
[353388985,1739808670822,-523.5,0.00014027,2]
[353388986,1739808670831,-500.0,0.00014027,2]
[353388987,1739808670841,-500.0,0.00014027,2]
[353388988,1739808670851,-500.0,0.00014027,2]
[353388989,1739808670860,-606.00606742,0.00014027,2]
[353388990,1739808670869,-500.0,0.00014027,2]
[353388991,1739808670878,-500.0,0.00014027,2]
[353388992,1739808670889,-500.0,0.00014027,2]
[353388993,1739808670898,-500.0,0.00014027,2]
[353388994,1739808670908,-555.61,0.00014027,2]
[353388995,1739808670917,-820.32,0.00014027,2]
[353388996,1739808670926,-500.0,0.00014027,2]
[353388997,1739808670937,-500.0,0.00014027,2]
[353388998,1739808670946,-500.0,0.00014027,2]
[353388999,1739808670956,-500.0,0.00014027,2]
[353389000,1739808670965,-500.0,0.00014027,2]
[353389001,1739808670975,-612.03,0.00014027,2]
[353389002,1739808670984,-500.0,0.00014027,2]
[353389003,1739808670994,-590.37,0.00014027,2]
[353389004,1739808671003,-500.0,0.00014027,2]
[353389005,1739808671013,-500.0,0.00014027,2]
[353389006,1739808671023,-500.0,0.00014027,2]
[353389007,1739808671032,-500.0,0.00014027,2]
[353389008,1739808671042,-500.0,0.00014027,2]
[353389009,1739808671052,-633.0,0.00014027,2]
[353389010,1739808671061,-500.0,0.00014027,2]
[353389011,1739808671071,-524.42,0.00014027,2]
[353389012,1739808671080,-603.72,0.00014027,2]
[353389013,1739808671090,-1073.87,0.00014027,2]
[353389014,1739808671100,-500.0,0.00014027,2]